[Event "European School-ch 2019"]
[Site "Mamaia"]
[Date "2019.06.05"]
[Round "6.46"]
[White "Babic, Masa"]
[Black "Andries, Alexia"]
[Result "1-0"]
[ECO "A04"]
[WhiteElo "1715"]
[BlackElo "1287"]
[Annotator "NA RC"]
[PlyCount "95"]
[EventDate "2019.05.31"]
[EventType "swiss"]
[EventCountry "ROU"]
[SourceTitle "playchess.com"]
[Source "ChessBase"]
[SourceQuality "1"]
[TimeControl "40/5400+30:1800+30"]

1. Nf3 {[%emt 0:00:00]} c5 {[%emt 0:00:03]} 2. c4 {[%emt 0:00:04]} Nc6 {[%emt 0:01:23]} 3. d4 {[%emt 0:01:58]} cxd4 {[%emt 0:03:22]} 4. Nxd4 {[%emt 0:00:46]} e6 {[%emt 0:11:02]} 5. Nc3 {[%emt 0:11:05]} Bb4 {[%emt 0:14:55]} 6. Ndb5 {[%emt 0:08:51]} a6 {[%emt 0:03:21]} 7. Nd6+ {[%emt 0:01:02]} Bxd6 {[%emt 0:00:33]} 8. Qxd6 {[%emt 0:00:06]} Qe7 {[%emt 0:03:16]} 9. Qd1 {[%emt 0:05:49]} Nf6 {[%emt 0:07:14]} 10. g3 {[%emt 0:02:41]} O-O {[%emt 0:02:14]} 11. Bg2 {[%emt 0:04:59]} Qc5 {[%emt 0:07:32]} 12. b3 {[%emt 0:14:59]} Ne7 {[%emt 0:13:38]} 13. Na4 {[%emt 0:08:31]} Qc7 {[%emt 0:01:45]} 14. Ba3 {[%emt 0:05:04]} Re8 {[%emt 0:02:13]} 15. Bd6 {[%emt 0:04:24]} Qa5+ {[%emt 0:03:40]} 16. Qd2 {[%emt 0:01:08]} Qxd2+ {[%emt 0:00:27]} 17. Kxd2 {[%emt 0:00:07]} Nf5 {[%emt 0:01:41]} 18. Bc7 {[%emt 0:03:29]} Ng4 {[%emt 0:03:49]} 19. Nb6 {[%emt 0:01:59]} Nxf2 {[%emt 0:00:59]} 20. Rhg1 {[%emt 0:01:26]} Ng4 {[%emt 0:01:32]} 21. h3 {[%emt 0:00:24]} Nf6 {[%emt 0:00:39]} 22. Nxa8 {[%emt 0:00:35]} b5 {[%emt 0:01:16]} 23. Be5 {[%emt 0:00:51]} d6 {[%emt 0:00:52]} 24. Bxf6 {[%emt 0:00:21]} gxf6 {[%emt 0:00:20]} 25. Rac1 {[%emt 0:02:26]} bxc4 {[%emt 0:03:56]} 26. Rxc4 {[%emt 0:01:11]} Bd7 {[%emt 0:01:00]} 27. Nb6 {[%emt 0:00:50]} Bb5 {[%emt 0:00:46]} 28. Rc8 {[%emt 0:00:58]} Rxc8 {[%emt 0:00:30]} 29. Nxc8 {[%emt 0:00:05]} d5 {[%emt 0:00:45]} 30. g4 {[%emt 0:02:54]} Nd4 {[%emt 0:00:21]} 31. e3 {[%emt 0:02:46]} Ne2 {[%emt 0:00:25]} 32. Re1 {[%emt 0:00:30]} Ng3 {[%emt 0:00:10]} 33. Nd6 {[%emt 0:00:37]} Kg7 {[%emt 0:02:17]} 34. Nxb5 {[%emt 0:00:23]} axb5 {[%emt 0:00:10]} 35. Bf3 {[%emt 0:00:20]} Ne4+ {[%emt 0:00:24]} 36. Bxe4 {[%emt 0:00:17]} dxe4 {[%emt 0:00:05]} 37. a4 {[%emt 0:00:03]} bxa4 {[%emt 0:00:33]} 38. bxa4 {[%emt 0:00:04]} Kg6 {[%emt 0:00:34]} 39. a5 {[%emt 0:00:03]} h5 {[%emt 0:00:11]} 40. a6 {[%emt 0:00:00]} hxg4 {[%emt 0:00:00]} 41. hxg4 {[%emt 0:00:12]} Kg5 {[%emt 0:00:27]} 42. Rg1 {[%emt 0:00:08]} f5 {[%emt 0:01:09]} 43. gxf5+ {[%emt 0:00:06]} Kxf5 {[%emt 0:00:06]} 44. a7 {[%emt 0:00:06]} Ke5 {[%emt 0:00:16]} 45. a8=Q {[%emt 0:00:11]} f6 {[%emt 0:00:23]} 46. Qa5+ {[%emt 0:00:09]} Kd6 {[%emt 0:00:37]} 47. Qb6+ {[%emt 0:00:09]} Ke5 {[%emt 0:00:33]} 48. Qc5# {[%emt 0:00:07]} 1-0

[Event "European School-ch 2019"]
[Site "Mamaia"]
[Date "2019.06.05"]
[Round "6.47"]
[White "Babic, Milana"]
[Black "Rasheva, Nora"]
[Result "1-0"]
[ECO "A05"]
[WhiteElo "1677"]
[BlackElo "1473"]
[Annotator "NA RC"]
[PlyCount "85"]
[EventDate "2019.05.31"]
[EventType "swiss"]
[EventCountry "ROU"]
[SourceTitle "playchess.com"]
[Source "ChessBase"]
[SourceQuality "1"]
[TimeControl "40/5400+30:1800+30"]

1. Nf3 {[%emt 0:00:00]} Nf6 {[%emt 0:00:00]} 2. g3 {[%emt 0:00:00]} g6 {[%emt 0:00:26]} 3. Bg2 {[%emt 0:00:00]} Bg7 {[%emt 0:00:13]} 4. O-O {[%emt 0:00:00]} O-O {[%emt 0:00:31]} 5. d4 {[%emt 0:00:00]} d5 {[%emt 0:00:29]} 6. b3 {[%emt 0:00:01]} c5 {[%emt 0:01:15]} 7. Bb2 {[%emt 0:00:54]} Ne4 {[%emt 0:02:34]} 8. Nbd2 {[%emt 0:06:35]} Nxd2 {[%emt 0:07:33]} 9. Qxd2 {[%emt 0:00:24]} Nc6 {[%emt 0:00:14]} 10. Rad1 {[%emt 0:05:27]} e6 {[%emt 0:09:54]} 11. Ba3 {[%emt 0:01:10]} Nxd4 {[%emt 0:04:33]} 12. Bxc5 {[%emt 0:01:06]} Nxf3+ {[%emt 0:00:09]} 13. Bxf3 {[%emt 0:00:09]} Re8 {[%emt 0:00:04]} 14. e4 {[%emt 0:00:45]} Qc7 {[%emt 0:01:01]} 15. Be3 {[%emt 0:08:06]} Rd8 {[%emt 0:13:27]} 16. exd5 {[%emt 0:04:22]} Bc3 {[%emt 0:05:17]} 17. Qc1 {[%emt 0:06:06]} exd5 {[%emt 0:01:56]} 18. Bg5 {[%emt 0:01:52]} Re8 {[%emt 0:03:56]} 19. Rxd5 {[%emt 0:04:56]} a6 {[%emt 0:07:04]} 20. Be3 {[%emt 0:01:43]} Bg7 {[%emt 0:00:47]} 21. Rfd1 {[%emt 0:01:08]} Be6 {[%emt 0:04:08]} 22. Bf4 {[%emt 0:07:42]} Qc8 {[%emt 0:08:50]} 23. R5d2 {[%emt 0:01:51]} Bf5 {[%emt 0:01:01]} 24. c4 {[%emt 0:01:05]} Bg4 {[%emt 0:04:50]} 25. Bxg4 {[%emt 0:02:46]} Qxg4 {[%emt 0:00:08]} 26. Rd7 {[%emt 0:07:08]} b5 {[%emt 0:01:03]} 27. c5 {[%emt 0:01:23]} Rac8 {[%emt 0:00:45]} 28. c6 {[%emt 0:02:15]} Bf6 {[%emt 0:02:44]} 29. c7 {[%emt 0:05:48]} h5 {[%emt 0:00:50]} 30. Qc6 {[%emt 0:04:40]} Re6 {[%emt 0:06:46]} 31. Qb7 {[%emt 0:06:55]} Re1+ {[%emt 0:02:30]} 32. Kg2 {[%emt 0:00:14]} Ree8 {[%emt 0:01:10]} 33. Qd5 {[%emt 0:05:29]} Rf8 {[%emt 0:00:56]} 34. f3 {[%emt 0:01:13]} Qe6 {[%emt 0:01:02]} 35. Qxe6 {[%emt 0:01:00]} fxe6 {[%emt 0:00:06]} 36. Bh6 {[%emt 0:04:03]} Rfe8 {[%emt 0:00:05]} 37. f4 {[%emt 0:01:03]} a5 {[%emt 0:00:26]} 38. R1d6 {[%emt 0:01:29]} h4 {[%emt 0:01:21]} 39. g4 {[%emt 0:00:31]} a4 {[%emt 0:00:44]} 40. bxa4 {[%emt 0:00:00]} bxa4 {[%emt 0:00:00]} 41. Ra6 {[%emt 0:01:09]} Ra8 {[%emt 0:00:41]} 42. Rxa8 {[%emt 0:00:22]} Rxa8 {[%emt 0:00:05]} 43. g5 1-0

[Event "European School-ch 2019"]
[Site "Mamaia"]
[Date "2019.06.05"]
[Round "6.48"]
[White "Mikhailina, Olga"]
[Black "Petrenko, Maryna"]
[Result "1/2-1/2"]
[ECO "B15"]
[WhiteElo "1338"]
[BlackElo "1307"]
[Annotator "NA RC"]
[PlyCount "98"]
[EventDate "2019.05.31"]
[EventType "swiss"]
[EventCountry "ROU"]
[SourceTitle "playchess.com"]
[Source "ChessBase"]
[SourceQuality "1"]
[TimeControl "40/5400+30:1800+30"]

1. e4 {[%emt 0:00:00]} c6 {[%emt 0:00:00]} 2. d4 {[%emt 0:00:00]} d5 {[%emt 0:00:00]} 3. Nc3 {[%emt 0:01:04]} dxe4 {[%emt 0:00:03]} 4. Nxe4 {[%emt 0:00:06]} Nf6 {[%emt 0:00:17]} 5. Nxf6+ {[%emt 0:03:24]} exf6 {[%emt 0:00:31]} 6. Nf3 {[%emt 0:03:27]} Bd6 {[%emt 0:04:29]} 7. Bd3 {[%emt 0:03:56]} O-O {[%emt 0:01:59]} 8. O-O {[%emt 0:00:21]} Bg4 {[%emt 0:00:49]} 9. Be3 {[%emt 0:11:57]} Nd7 {[%emt 0:03:06]} 10. Be2 {[%emt 0:18:39]} Re8 {[%emt 0:08:22]} 11. h3 {[%emt 0:06:08]} Bh5 {[%emt 0:12:05]} 12. Nh4 {[%emt 0:04:17]} Bxe2 {[%emt 0:05:06]} 13. Qxe2 {[%emt 0:00:08]} Nf8 {[%emt 0:19:50]} 14. Qg4 {[%emt 0:16:47]} Kh8 {[%emt 0:10:47]} 15. Nf5 {[%emt 0:06:10]} Ng6 {[%emt 0:03:39]} 16. h4 {[%emt 0:05:02]} Bf8 {[%emt 0:00:39]} 17. Rfe1 {[%emt 0:05:40]} Qc8 {[%emt 0:00:27]} 18. Qf3 {[%emt 0:03:57]} Rd8 {[%emt 0:03:36]} 19. h5 {[%emt 0:02:30]} Ne7 {[%emt 0:01:47]} 20. Nxe7 {[%emt 0:00:44]} Bxe7 {[%emt 0:00:03]} 21. h6 {[%emt 0:00:52]} Bf8 {[%emt 0:03:08]} 22. c3 {[%emt 0:02:12]} Rd5 {[%emt 0:02:50]} 23. hxg7+ {[%emt 0:01:43]} Bxg7 {[%emt 0:00:14]} 24. Bd2 {[%emt 0:00:39]} Qf5 {[%emt 0:01:40]} 25. Qxf5 {[%emt 0:00:40]} Rxf5 {[%emt 0:00:02]} 26. Re7 {[%emt 0:00:31]} Rb5 {[%emt 0:00:32]} 27. b3 {[%emt 0:00:48]} Kg8 {[%emt 0:00:49]} 28. Rae1 {[%emt 0:00:57]} Bf8 {[%emt 0:03:23]} 29. Re8 {[%emt 0:00:36]} Rxe8 {[%emt 0:00:07]} 30. Rxe8 {[%emt 0:00:04]} Kg7 {[%emt 0:00:16]} 31. Bh6+ {[%emt 0:01:16]} Kxh6 {[%emt 0:00:05]} 32. Rxf8 {[%emt 0:00:01]} Kg7 {[%emt 0:00:11]} 33. Re8 {[%emt 0:00:53]} b6 {[%emt 0:03:44]} 34. Re7 {[%emt 0:00:50]} Ra5 {[%emt 0:01:40]} 35. a4 {[%emt 0:00:37]} b5 {[%emt 0:00:49]} 36. Rc7 {[%emt 0:00:28]} bxa4 {[%emt 0:00:44]} 37. bxa4 {[%emt 0:00:13]} c5 {[%emt 0:02:05]} 38. Rxc5 {[%emt 0:00:45]} Rxa4 {[%emt 0:00:54]} 39. Rc7 {[%emt 0:00:30]} a5 {[%emt 0:00:49]} 40. Ra7 {[%emt 0:00:00]} Ra1+ {[%emt 0:00:00]} 41. Kh2 {[%emt 0:00:57]} Rc1 {[%emt 0:00:51]} 42. Rxa5 {[%emt 0:03:18]} Rxc3 {[%emt 0:00:52]} 43. f3 {[%emt 0:04:25]} Rd3 {[%emt 0:00:29]} 44. Rd5 {[%emt 0:02:38]} f5 {[%emt 0:01:20]} 45. Kg3 {[%emt 0:02:46]} Kf6 {[%emt 0:02:48]} 46. Kf4 {[%emt 0:03:55]} Ke6 {[%emt 0:01:20]} 47. Re5+ {[%emt 0:04:47]} Kd6 {[%emt 0:00:10]} 48. Kxf5 {[%emt 0:02:12]} Rxd4 {[%emt 0:00:04]} 49. Re8 {[%emt 0:00:47]} Rh4 {[%emt 0:02:34] Ke4 Ke5+} 1/2-1/2

[Event "European School-ch 2019"]
[Site "Mamaia"]
[Date "2019.06.05"]
[Round "6.49"]
[White "Petricenco, Ana"]
[Black "Aydin, Gulenay"]
[Result "1/2-1/2"]
[ECO "B52"]
[WhiteElo "1484"]
[BlackElo "1967"]
[Annotator "NA RC"]
[PlyCount "89"]
[EventDate "2019.05.31"]
[EventType "swiss"]
[EventCountry "ROU"]
[SourceTitle "playchess.com"]
[Source "ChessBase"]
[SourceQuality "1"]
[TimeControl "40/5400+30:1800+30"]

1. e4 {[%emt 0:00:00]} c5 {[%emt 0:00:00]} 2. Nf3 {[%emt 0:00:00]} d6 {[%emt 0:00:00]} 3. Bb5+ {[%emt 0:00:00]} Bd7 {[%emt 0:00:00]} 4. Bxd7+ {[%emt 0:00:00]} Qxd7 {[%emt 0:00:00]} 5. O-O {[%emt 0:00:07]} Nc6 {[%emt 0:00:51]} 6. Re1 {[%emt 0:00:39]} Nf6 7. c3 {[%emt 0:00:35]} g6 {[%emt 0:02:40]} 8. d4 {[%emt 0:01:16]} cxd4 {[%emt 0:00:23]} 9. cxd4 {[%emt 0:00:13]} Bg7 {[%emt 0:01:56] B52: Sicilian: Moscow Variation with 3...Bd7} (9... d5 10. e5 Ne4 11. Nbd2 Nxd2 12. Bxd2 Bg7 13. Qb3 O-O 14. Rac1 Rfc8 15. Qd3 Nd8 16. g3 Rxc1 17. Rxc1 {½-½ (30) Wang,C (2505)-Lu,S (2620) Xinghua 2017}) 10. a3 {[%emt 0:01:19]} O-O {[%emt 0:03:17]} 11. Nc3 {[%emt 0:01:46]} Rfd8 $146 {[%emt 0:03:02]} ({Predecessor:} 11... Rac8 12. Qd3 Rfd8 13. Bg5 h6 14. Be3 Ng4 15. Bf4 e5 16. Be3 Nxe3 17. fxe3 Na5 18. Rab1 a6 19. a4 Rc6 {1-0 (51) Zvara,D (1680)-Klima,J Ricany 2007}) 12. h3 {[%emt 0:05:26]} Rac8 {[%emt 0:02:04]} 13. Be3 {[%emt 0:02:35]} d5 {[%emt 0:02:39]} 14. e5 {[%emt 0:02:19]} Ne4 {[%emt 0:00:10]} 15. Ne2 {[%emt 0:04:01]} f6 {[%emt 0:04:27]} 16. exf6 {[%emt 0:05:08]} Bxf6 {[%emt 0:07:15]} 17. Nd2 {[%emt 0:06:05]} Nd6 {[%emt 0:03:21]} 18. Nb3 {[%emt 0:04:07]} b6 {[%emt 0:01:51]} 19. Nc3 {[%emt 0:01:08]} Nc4 {[%emt 0:07:37]} 20. Bc1 {[%emt 0:03:37]} e5 {[%emt 0:19:27]} 21. dxe5 {[%emt 0:06:04]} N6xe5 {[%emt 0:01:49]} 22. Nd4 {[%emt 0:05:49]} Re8 {[%emt 0:08:22]} 23. Nce2 {[%emt 0:06:17]} Nc6 {[%emt 0:04:28]} 24. Nxc6 {[%emt 0:03:27]} Qxc6 {[%emt 0:00:26]} 25. Rb1 {[%emt 0:02:28]} Rcd8 {[%emt 0:10:56]} 26. b3 {[%emt 0:02:12]} Nd6 {[%emt 0:01:36]} 27. Bb2 {[%emt 0:02:14]} Ne4 {[%emt 0:01:31]} 28. Bxf6 {[%emt 0:01:55]} Qxf6 {[%emt 0:00:43]} 29. f3 {[%emt 0:01:53]} Nc5 {[%emt 0:01:23]} 30. Qd2 {[%emt 0:03:12]} d4 {[%emt 0:03:17]} 31. Nc1 {[%emt 0:05:56]} Rxe1+ {[%emt 0:02:19]} 32. Qxe1 {[%emt 0:00:13]} d3 {[%emt 0:00:08]} 33. Qd2 {[%emt 0:01:16]} Qd4+ {[%emt 0:01:58]} 34. Kh1 {[%emt 0:00:49]} Ne6 {[%emt 0:01:08]} 35. b4 {[%emt 0:01:23]} Nf4 {[%emt 0:00:49]} 36. Nb3 {[%emt 0:02:20]} Qe5 {[%emt 0:01:56]} 37. Re1 {[%emt 0:02:55]} Ne2 {[%emt 0:00:47]} 38. Nc1 {[%emt 0:04:54]} Ng3+ {[%emt 0:02:47]} 39. Kg1 {[%emt 0:00:18]} Qd4+ {[%emt 0:00:35]} 40. Kh2 {[%emt 0:00:00]} Nh5 {[%emt 0:00:00]} 41. Nxd3 {[%emt 0:06:05]} Qd6+ {[%emt 0:25:05]} 42. Kg1 $11 {[%emt 0:00:19]} Qd4+ {[%emt 0:02:05]} 43. Kh2 {[%emt 0:00:09]} Qd6+ {[%emt 0:00:39]} 44. Kg1 {[%emt 0:00:21]} Qd4+ {[%emt 0:00:45]} 45. Kh2 {[%emt 0:01:31]} 1/2-1/2

[Event "European School-ch 2019"]
[Site "Mamaia"]
[Date "2019.06.05"]
[Round "6.50"]
[White "Karaivanova, Petya"]
[Black "Kapicakova, Lucia"]
[Result "1-0"]
[ECO "B13"]
[WhiteElo "1688"]
[BlackElo "1776"]
[Annotator "NA RC"]
[PlyCount "164"]
[EventDate "2019.05.31"]
[EventType "swiss"]
[EventCountry "ROU"]
[SourceTitle "playchess.com"]
[Source "ChessBase"]
[SourceQuality "1"]
[TimeControl "40/5400+30:1800+30"]

1. e4 {[%emt 0:00:00]} c6 {[%emt 0:00:00]} 2. d4 {[%emt 0:00:00]} d5 {[%emt 0:00:00]} 3. exd5 {[%emt 0:00:00]} cxd5 {[%emt 0:00:00]} 4. Bd3 {[%emt 0:00:00]} Nc6 {[%emt 0:00:09]} 5. c3 {[%emt 0:00:00]} Nf6 {[%emt 0:00:17]} 6. h3 {[%emt 0:00:12]} g6 {[%emt 0:00:49]} 7. Nf3 {[%emt 0:00:39]} Bg7 {[%emt 0:00:33]} 8. O-O {[%emt 0:00:55]} Bf5 {[%emt 0:01:27]} 9. Be2 {[%emt 0:02:05]} O-O {[%emt 0:02:44]} 10. Bf4 {[%emt 0:01:53]} Qb6 {[%emt 0:06:04]} 11. Bc1 {[%emt 0:12:49]} Rac8 {[%emt 0:08:57]} 12. Nbd2 {[%emt 0:08:46]} a6 {[%emt 0:08:19]} 13. Re1 {[%emt 0:00:41]} Qc7 {[%emt 0:10:33]} 14. Nf1 {[%emt 0:04:55]} b5 {[%emt 0:05:25]} 15. Ng3 {[%emt 0:03:41]} Ne4 {[%emt 0:07:15]} 16. Nxe4 {[%emt 0:11:50]} Bxe4 {[%emt 0:00:56]} 17. Ng5 {[%emt 0:01:23]} h6 {[%emt 0:13:37]} 18. Nf3 {[%emt 0:04:59]} Bxf3 {[%emt 0:07:16]} 19. Bxf3 {[%emt 0:00:15]} e6 {[%emt 0:02:33]} 20. Be2 {[%emt 0:02:27]} Qb6 {[%emt 0:03:22]} 21. a3 {[%emt 0:02:32]} Na5 {[%emt 0:04:41]} 22. Bf4 {[%emt 0:04:09]} Nc4 {[%emt 0:02:56]} 23. Ra2 {[%emt 0:07:27]} Rc6 {[%emt 0:03:59]} 24. Bd3 {[%emt 0:03:56]} Rfc8 {[%emt 0:03:17]} 25. h4 {[%emt 0:04:20]} a5 {[%emt 0:03:24]} 26. g4 {[%emt 0:10:45]} Qd8 {[%emt 0:03:13]} 27. g5 {[%emt 0:02:02]} h5 {[%emt 0:00:38]} 28. Qf3 {[%emt 0:02:37]} Qb6 {[%emt 0:00:55]} 29. Rea1 {[%emt 0:01:00]} Qd8 {[%emt 0:00:36]} 30. Re1 {[%emt 0:02:11]} Qb6 {[%emt 0:00:23]} 31. Rea1 {[%emt 0:00:29]} Ra8 {[%emt 0:00:32]} 32. Qe2 {[%emt 0:00:59]} Rac8 {[%emt 0:00:37]} 33. Kg2 {[%emt 0:00:56]} Qb7 {[%emt 0:00:26]} 34. Bg3 {[%emt 0:00:55]} Rb6 {[%emt 0:00:31]} 35. f4 {[%emt 0:00:43]} Qc6 {[%emt 0:00:29]} 36. Bf2 {[%emt 0:04:01]} b4 {[%emt 0:00:28]} 37. axb4 {[%emt 0:00:44]} axb4 {[%emt 0:00:06]} 38. b3 {[%emt 0:00:31]} Nd6 {[%emt 0:00:37]} 39. cxb4 {[%emt 0:00:29]} Rxb4 {[%emt 0:00:32]} 40. Ra6 {[%emt 0:00:00]} Rb6 {[%emt 0:00:00]} 41. Rxb6 {[%emt 0:01:39]} Qxb6 {[%emt 0:01:03]} 42. Ra6 {[%emt 0:00:14]} Qb4 {[%emt 0:12:42]} 43. Bxg6 {[%emt 0:06:54]} Ne4 {[%emt 0:12:25]} 44. Bxe4 {[%emt 0:08:11]} dxe4 {[%emt 0:00:08]} 45. Qxe4 {[%emt 0:01:19]} Qxb3 {[%emt 0:01:16]} 46. g6 {[%emt 0:03:55]} fxg6 {[%emt 0:04:19]} 47. Rxe6 {[%emt 0:00:48]} Rf8 {[%emt 0:01:51]} 48. Rxg6 {[%emt 0:03:02]} Qf7 {[%emt 0:00:40]} 49. Rg5 {[%emt 0:08:47]} Qxf4 {[%emt 0:00:42]} 50. Qxf4 {[%emt 0:00:19]} Rxf4 {[%emt 0:00:04]} 51. Kg3 {[%emt 0:00:17]} Re4 {[%emt 0:00:44]} 52. Kf3 {[%emt 0:00:29]} Re7 {[%emt 0:00:43]} 53. Rxh5 {[%emt 0:01:04]} Kf7 {[%emt 0:00:33]} 54. Rc5 {[%emt 0:00:49]} Rd7 {[%emt 0:00:37]} 55. d5 {[%emt 0:00:39]} Be5 {[%emt 0:00:31]} 56. Bg3 {[%emt 0:00:37]} Bd4 {[%emt 0:00:25]} 57. Rb5 {[%emt 0:00:09]} Kg6 {[%emt 0:00:33]} 58. d6 {[%emt 0:00:40]} Bg7 {[%emt 0:00:33]} 59. Rc5 {[%emt 0:00:31]} Bf8 {[%emt 0:00:30]} 60. Rc7 {[%emt 0:00:38]} Rd8 {[%emt 0:00:23]} 61. d7 {[%emt 0:00:33]} Kf7 {[%emt 0:00:33]} 62. Bf4 {[%emt 0:00:31]} Ke6 {[%emt 0:00:30]} 63. Rc1 {[%emt 0:00:33]} Rxd7 {[%emt 0:00:17]} 64. Re1+ {[%emt 0:00:09]} Kf5 {[%emt 0:00:35]} 65. Re5+ {[%emt 0:00:08]} Kf6 {[%emt 0:00:24]} 66. Ke4 {[%emt 0:01:00]} Kg6 {[%emt 0:00:43]} 67. Rg5+ {[%emt 0:00:20]} Kf6 {[%emt 0:00:34]} 68. Be5+ {[%emt 0:00:09]} Ke6 {[%emt 0:00:30]} 69. Rg6+ {[%emt 0:00:10]} Ke7 {[%emt 0:00:28]} 70. h5 {[%emt 0:00:18]} Rd1 {[%emt 0:00:35]} 71. Kf4 {[%emt 0:01:20]} Rh1 {[%emt 0:00:30]} 72. Kg5 {[%emt 0:00:53]} Rg1+ {[%emt 0:00:17]} 73. Kf5 {[%emt 0:00:04]} Rh1 {[%emt 0:00:38]} 74. Kg5 {[%emt 0:00:56]} Rg1+ {[%emt 0:00:29]} 75. Kf5 {[%emt 0:00:05]} Rh1 {[%emt 0:00:22]} 76. Kg4 {[%emt 0:00:27]} Rg1+ {[%emt 0:00:41]} 77. Bg3 {[%emt 0:00:43]} Kf7 {[%emt 0:00:33]} 78. Ra6 {[%emt 0:00:08]} Bg7 {[%emt 0:00:28]} 79. Kf3 {[%emt 0:01:02]} Rh1 {[%emt 0:00:25]} 80. Ra5 {[%emt 0:00:14]} Rf1+ {[%emt 0:00:30]} 81. Kg2 {[%emt 0:00:15]} Rf6 {[%emt 0:00:26]} 82. Be5 {[%emt 0:00:34]} Re6 1-0

[Event "European School-ch 2019"]
[Site "Mamaia"]
[Date "2019.06.05"]
[Round "6.51"]
[White "Shuqja, Klean"]
[Black "Mamardashvili, Ana"]
[Result "1-0"]
[ECO "B70"]
[WhiteElo "1858"]
[BlackElo "1415"]
[Annotator "NA RC"]
[PlyCount "81"]
[EventDate "2019.05.31"]
[EventType "swiss"]
[EventCountry "ROU"]
[SourceTitle "playchess.com"]
[Source "ChessBase"]
[SourceQuality "1"]
[TimeControl "40/5400+30:1800+30"]

1. e4 {[%emt 0:00:00]} c5 {[%emt 0:00:00]} 2. Nf3 {[%emt 0:00:00]} d6 {[%emt 0:00:00]} 3. d4 {[%emt 0:00:00]} cxd4 {[%emt 0:00:00]} 4. Nxd4 {[%emt 0:00:00]} Nf6 {[%emt 0:00:00]} 5. Nc3 {[%emt 0:00:00]} g6 {[%emt 0:00:06]} 6. Bg5 {[%emt 0:00:00]} Bg7 {[%emt 0:00:13]} 7. Be2 {[%emt 0:00:05]} O-O {[%emt 0:00:59]} 8. O-O {[%emt 0:00:03]} Nc6 {[%emt 0:00:08]} 9. Nb3 {[%emt 0:00:02]} a5 {[%emt 0:00:29]} 10. a4 {[%emt 0:00:37]} Be6 {[%emt 0:00:13]} 11. Kh1 {[%emt 0:01:08]} Qc8 {[%emt 0:00:27]} 12. f4 {[%emt 0:09:50]} Rd8 {[%emt 0:01:57]} 13. Qd2 {[%emt 0:17:46]} d5 {[%emt 0:10:11]} 14. e5 {[%emt 0:04:37]} d4 {[%emt 0:07:58]} 15. exf6 {[%emt 0:07:40]} dxc3 $11 {[%emt 0:00:15]} (15... exf6 $17 16. Ne4 fxg5 17. fxg5 Bxb3 18. cxb3 Qe6) 16. Qxc3 {[%emt 0:01:17]} Bh8 {[%emt 0:08:55]} 17. Bb5 {[%emt 0:11:00]} Rd6 {[%emt 0:09:44]} 18. Rad1 {[%emt 0:08:31]} Qc7 {[%emt 0:13:33]} 19. Nc5 {[%emt 0:07:58]} Rxd1 {[%emt 0:20:46]} 20. Rxd1 {[%emt 0:00:07]} Rd8 {[%emt 0:01:17]} 21. Re1 {[%emt 0:02:01]} Bxf6 {[%emt 0:13:54]} 22. Bxf6 {[%emt 0:00:24]} exf6 {[%emt 0:00:05]} 23. Nxe6 {[%emt 0:04:30]} fxe6 {[%emt 0:00:05]} 24. Qxf6 {[%emt 0:00:17]} Qd6 {[%emt 0:03:05]} 25. Bc4 {[%emt 0:03:34]} Nd4 {[%emt 0:06:18]} 26. Rxe6 {[%emt 0:02:12]} Nxe6 {[%emt 0:01:08]} 27. Bxe6+ {[%emt 0:00:04]} Qxe6 {[%emt 0:00:08]} 28. Qxe6+ {[%emt 0:00:02]} Kf8 {[%emt 0:00:09]} 29. h3 {[%emt 0:00:13]} Rd1+ {[%emt 0:00:16]} 30. Kh2 Rd2 {[%emt 0:00:12]} 31. Qc8+ {[%emt 0:00:12]} Kf7 {[%emt 0:00:05]} 32. Qxb7+ {[%emt 0:00:04]} Ke6 {[%emt 0:00:07]} 33. c4 {[%emt 0:00:15]} Kf5 {[%emt 0:00:22]} 34. c5 {[%emt 0:00:19]} Kxf4 {[%emt 0:00:08]} 35. c6 {[%emt 0:00:04]} g5 {[%emt 0:00:20]} 36. c7 {[%emt 0:00:09]} g4 {[%emt 0:00:17]} 37. hxg4 {[%emt 0:00:07]} h5 {[%emt 0:01:02]} 38. gxh5 {[%emt 0:00:17]} Kg5 {[%emt 0:00:47]} 39. c8=Q {[%emt 0:00:14]} Kxh5 {[%emt 0:00:17]} 40. Qg7 {[%emt 0:00:00]} Rd8 {[%emt 0:00:00]} 41. Qh3# {[%emt 0:00:50]} 1-0

[Event "European School-ch 2019"]
[Site "Mamaia"]
[Date "2019.06.05"]
[Round "6.52"]
[White "Putinceva, Marina"]
[Black "Puia, Alexia-Teodora"]
[Result "0-1"]
[ECO "B44"]
[WhiteElo "1471"]
[BlackElo "1543"]
[Annotator "NA RC"]
[PlyCount "78"]
[EventDate "2019.05.31"]
[EventType "swiss"]
[EventCountry "ROU"]
[SourceTitle "playchess.com"]
[Source "ChessBase"]
[SourceQuality "1"]
[TimeControl "40/5400+30:1800+30"]

1. e4 {[%emt 0:00:00]} c5 {[%emt 0:00:00]} 2. Nf3 {[%emt 0:00:00]} e6 {[%emt 0:00:00]} 3. d4 {[%emt 0:00:00]} cxd4 {[%emt 0:00:00]} 4. Nxd4 {[%emt 0:00:00]} Nc6 {[%emt 0:00:00]} 5. Nxc6 {[%emt 0:01:27]} bxc6 {[%emt 0:00:06]} 6. Bd3 {[%emt 0:00:40]} Qc7 {[%emt 0:00:34]} 7. O-O {[%emt 0:02:19]} Nf6 {[%emt 0:00:54]} 8. Nd2 {[%emt 0:05:27]} Bb7 {[%emt 0:08:09]} 9. Qe2 {[%emt 0:06:44]} Bd6 {[%emt 0:12:17]} 10. h3 {[%emt 0:02:44]} e5 {[%emt 0:04:53]} 11. Nc4 {[%emt 0:04:48]} Bc5 {[%emt 0:02:35]} 12. Kh1 {[%emt 0:05:00]} h5 {[%emt 0:08:56]} 13. Be3 {[%emt 0:05:29]} Bxe3 {[%emt 0:02:06]} 14. Qxe3 {[%emt 0:00:58]} O-O {[%emt 0:15:05]} 15. Qg5 {[%emt 0:03:21]} d6 {[%emt 0:13:17]} 16. f4 {[%emt 0:09:31]} Nxe4 {[%emt 0:11:10]} 17. Bxe4 {[%emt 0:03:13]} d5 {[%emt 0:00:08]} 18. Bh7+ {[%emt 0:07:22]} Kxh7 {[%emt 0:00:16]} 19. Qxh5+ {[%emt 0:00:15]} Kg8 {[%emt 0:00:07]} 20. Nxe5 {[%emt 0:00:18]} Rae8 {[%emt 0:04:11]} 21. Rae1 {[%emt 0:07:44]} Re6 {[%emt 0:03:03]} 22. Nd3 {[%emt 0:12:44]} Ba6 {[%emt 0:05:31]} 23. f5 {[%emt 0:08:24]} Rxe1 {[%emt 0:00:58]} 24. Rxe1 {[%emt 0:00:05]} Bxd3 {[%emt 0:00:42]} 25. cxd3 {[%emt 0:00:21]} Qa5 {[%emt 0:00:50]} 26. Rf1 {[%emt 0:07:41]} Re8 {[%emt 0:02:47]} 27. Rf4 {[%emt 0:05:39]} Qe1+ {[%emt 0:01:43]} 28. Kh2 {[%emt 0:00:01]} Qe5 {[%emt 0:00:11]} 29. Qg4 {[%emt 0:00:39]} Qxb2 {[%emt 0:01:36]} 30. f6 {[%emt 0:00:42]} g6 {[%emt 0:00:56]} 31. Qg5 {[%emt 0:01:06]} Re6 {[%emt 0:01:39]} 32. d4 {[%emt 0:00:24]} Qa3 {[%emt 0:00:15]} 33. Qh6 {[%emt 0:00:49]} Qf8 {[%emt 0:00:09]} 34. Qg5 {[%emt 0:00:33]} Qd6 {[%emt 0:00:12]} 35. h4 {[%emt 0:00:31]} Re4 {[%emt 0:00:35]} 36. Kg3 Rxd4 {[%emt 0:01:08]} 37. Kg4 {[%emt 0:00:59]} Rxf4+ {[%emt 0:00:24]} 38. Qxf4 {[%emt 0:00:05]} Qxf4+ {[%emt 0:00:11]} 39. Kxf4 {[%emt 0:00:00]} d4 {[%emt 0:00:00]} 0-1